bitfinex/quotes_BTCUSD_20241119
["timestamp","ask_amount","ask_price","bid_price","bid_amount"]
[1732010708644,0.30186881,91783.0,91782.0,0.0057096]
[1732010709064,0.41186881,91783.0,91782.0,0.0057096]
[1732010709271,0.42186881,91783.0,91782.0,0.0057096]
[1732010709477,0.42186881,91783.0,91782.0,0.0047096]
[1732010709726,0.50746881,91783.0,91782.0,0.0047096]
[1732010709936,0.50746881,91783.0,91782.0,0.0017096]
[1732010710169,0.54766881,91783.0,91782.0,0.0017096]
[1732010710586,0.55266881,91783.0,91782.0,0.0027096]
[1732010711041,0.55266881,91783.0,91763.0,0.16341916]
[1732010711042,0.108975,91764.0,91763.0,0.16341916]
[1732010711262,0.24103755,91764.0,91763.0,0.16341916]
[1732010711695,0.24103755,91764.0,91753.0,0.16341916]
[1732010711696,0.131987,91754.0,91753.0,0.16341916]
[1732010711904,0.24104955,91754.0,91753.0,0.16341916]
[1732010712122,0.24104955,91754.0,91752.0,0.0008548]
[1732010712123,0.023,91753.0,91752.0,0.0008548]
[1732010712559,0.24105055,91753.0,91752.0,0.0008548]
[1732010712842,0.13206255,91753.0,91752.0,0.0008548]
[1732010713074,0.24105055,91753.0,91752.0,0.0008548]
[1732010713302,0.24105055,91753.0,91752.0,0.0068548]
[1732010713533,0.24205055,91753.0,91752.0,0.0188548]
[1732010714421,0.30984931,91753.0,91752.0,0.0188548]
[1732010714895,0.43694931,91753.0,91752.0,0.0188548]
[1732010715581,0.43494931,91753.0,91752.0,0.0128548]
[1732010715791,0.44194931,91753.0,91752.0,0.0008548]
[1732010716009,0.44094931,91753.0,91752.0,0.0008548]
[1732010716222,0.44494931,91753.0,91752.0,0.0008548]
[1732010716435,0.37715055,91753.0,91752.0,0.0008548]
[1732010716676,0.38315055,91753.0,91752.0,0.0008548]
[1732010717616,0.38315055,91753.0,91752.0,0.396582]
[1732010717617,0.53055412,91753.0,91752.0,0.396582]
[1732010717841,0.6122131,91753.0,91752.0,0.396582]
[1732010718538,0.6062131,91753.0,91752.0,0.393164]
[1732010719016,0.6032131,91753.0,91752.0,0.3135008]
[1732010719263,0.4891131,91753.0,91752.0,0.1874008]
[1732010719486,0.5142131,91753.0,91752.0,0.1809828]
[1732010719713,0.5202131,91753.0,91752.0,0.1829828]
[1732010719949,0.5352131,91753.0,91752.0,0.1849828]
[1732010720160,0.5272131,91753.0,91752.0,0.1829828]
[1732010720374,0.5272131,91753.0,91752.0,0.1849828]
[1732010720633,0.5332131,91753.0,91752.0,0.1849828]
[1732010721724,0.5352131,91753.0,91752.0,0.1849828]
[1732010722164,0.42615055,91753.0,91752.0,0.1849828]
[1732010722588,0.96405055,91753.0,91752.0,0.1849828]
[1732010724987,0.96205055,91753.0,91752.0,0.1849828]
[1732010726592,0.96405055,91753.0,91752.0,0.1849828]
[1732010727472,0.129006,91738.0,91737.0,0.0017096]
[1732010727719,0.36306855,91738.0,91737.0,0.0017096]
[1732010727960,0.38116855,91738.0,91737.0,0.0017096]
[1732010728657,0.41916855,91738.0,91737.0,0.0037096]
[1732010728886,0.5492311,91738.0,91737.0,0.0057096]
[1732010729322,0.39606855,91738.0,91737.0,0.0057096]
[1732010729538,0.44111525,91738.0,91737.0,0.0057096]
[1732010730987,0.43911525,91738.0,91737.0,0.0057096]
[1732010731225,0.44111525,91738.0,91737.0,0.0057096]
[1732010731473,0.44111525,91738.0,91737.0,0.004512]
[1732010731692,0.44111525,91738.0,91711.0,0.0828]
[1732010731693,0.252034,91714.0,91713.0,0.0008546]
[1732010731911,0.38143757,91714.0,91713.0,0.0008546]
[1732010732344,0.48499963,91714.0,91713.0,0.0008546]
[1732010734414,0.51199963,91714.0,91713.0,0.0018546]
[1732010734670,0.51199963,91714.0,91713.0,0.0038546]
[1732010734671,0.53099963,91714.0,91713.0,0.0038546]
[1732010735099,0.64006218,91714.0,91713.0,0.0038546]
[1732010738668,0.63806218,91714.0,91713.0,0.0038546]
[1732010738880,0.66036615,91714.0,91713.0,0.0038546]
[1732010739297,0.64006218,91714.0,91713.0,0.0038546]
[1732010739504,0.63806218,91714.0,91713.0,0.0038546]
[1732010739730,0.66037498,91714.0,91713.0,0.0038546]
[1732010741937,0.66038624,91714.0,91713.0,0.0038546]
[1732010743766,0.69420973,91714.0,91713.0,0.0038546]
[1732010744202,0.69420973,91714.0,91713.0,0.0031446]
[1732010745056,1.21230973,91714.0,91713.0,0.0031446]
[1732010745904,1.19420973,91714.0,91713.0,0.0031446]
[1732010746125,1.14820973,91714.0,91713.0,0.0001446]
[1732010746362,1.17520973,91714.0,91713.0,0.0001446]
[1732010746579,1.20220973,91714.0,91713.0,0.0001446]
[1732010746801,1.74010973,91714.0,91713.0,0.0001446]
[1732010747002,1.68610973,91714.0,91713.0,0.0001446]
[1732010747219,1.68610973,91714.0,91694.0,0.0771]
[1732010747220,0.109069,91685.0,91684.0,0.01983651]
[1732010747424,0.26145561,91685.0,91684.0,0.01983651]
[1732010748913,0.24113155,91685.0,91684.0,0.01983651]
[1732010749361,0.26013155,91685.0,91684.0,0.01983651]
[1732010749580,0.26413155,91685.0,91684.0,0.01983651]
[1732010750227,0.26413155,91685.0,91684.0,0.10263651]
[1732010752428,0.35618271,91685.0,91684.0,0.10263651]
[1732010752663,0.26413155,91685.0,91684.0,0.10263651]
[1732010752875,0.28448544,91685.0,91684.0,0.10263651]
[1732010753914,0.26413155,91685.0,91684.0,0.10263651]
[1732010754795,0.28449205,91685.0,91684.0,0.10263651]
[1732010755227,0.37600659,91685.0,91684.0,0.10263651]
[1732010755676,0.37600659,91685.0,91684.0,0.10349151]
[1732010756329,0.35564609,91685.0,91684.0,0.10349151]
[1732010756533,0.37601692,91685.0,91684.0,0.10349151]
[1732010756752,0.28450238,91685.0,91684.0,0.10349151]
[1732010756971,0.15506255,91685.0,91684.0,0.10349151]
[1732010757197,0.26413155,91685.0,91684.0,0.10349151]
[1732010767240,0.15506255,91685.0,91684.0,0.10349151]
[1732010767464,0.15506255,91685.0,91684.0,0.29352651]
[1732010767692,0.023,91685.0,91684.0,0.29352651]
[1732010768140,0.023,91685.0,91684.0,0.37449151]
[1732010768357,0.16341916,91710.0,91685.0,0.1207]
[1732010768560,0.10906255,91709.0,91707.0,0.1308]
[1732010769527,0.023,91708.0,91707.0,0.1308]
[1732010769754,0.13206255,91708.0,91707.0,0.1308]
[1732010769981,0.13206255,91708.0,91707.0,0.239842]
[1732010770200,0.24110355,91708.0,91707.0,0.1308]
[1732010770905,0.24110355,91708.0,91707.0,0.1318]
[1732010771363,0.13206255,91708.0,91707.0,0.1308]
[1732010771583,0.15806255,91708.0,91707.0,0.1338]
[1732010771806,0.26710355,91708.0,91707.0,0.1338]
[1732010773019,0.15806255,91708.0,91707.0,0.1338]
[1732010773824,0.15806255,91708.0,91707.0,0.242842]
[1732010774567,0.15806255,91708.0,91707.0,0.1338]
[1732010774787,0.15806255,91708.0,91707.0,0.242842]
[1732010775221,0.15806255,91708.0,91707.0,0.1338]
[1732010775647,0.26710355,91708.0,91707.0,0.1338]
[1732010777620,0.15806255,91708.0,91707.0,0.1338]
[1732010778251,0.15977255,91708.0,91707.0,0.1338]
[1732010778480,0.26881355,91708.0,91707.0,0.1338]
[1732010780148,0.31483458,91708.0,91707.0,0.003]
[1732010780277,0.31283458,91708.0,91707.0,0.003]
[1732010780923,0.26881355,91708.0,91707.0,0.003]
[1732010782763,0.26881355,91708.0,91692.0,0.16341916]
[1732010782764,0.15977255,91708.0,91692.0,0.16341916]
[1732010782981,0.109053,91698.0,91694.0,0.109057]
[1732010783171,0.218102,91701.0,91690.0,0.218125]
[1732010783400,0.218107,91698.0,91675.0,0.31581744]
[1732010783613,0.109068,91686.0,91678.0,0.218152]
[1732010783803,0.218112,91696.0,91679.0,0.04415071]
[1732010784047,0.218112,91696.0,91694.0,0.006]
[1732010784048,0.25111955,91695.0,91694.0,0.006]
[1732010784468,0.109069,91685.0,91676.0,0.16512876]
[1732010784729,0.24113155,91685.0,91676.0,0.16512876]
[1732010784963,0.24113155,91685.0,91677.0,0.109078]
[1732010785373,0.24113155,91685.0,91676.0,0.0017096]
[1732010785577,0.24113155,91685.0,91678.0,0.109076]
[1732010785786,0.25113155,91685.0,91684.0,0.006855]
[1732010786252,0.25113155,91685.0,91684.0,0.001855]
[1732010786666,0.25313155,91685.0,91684.0,0.002855]
[1732010794446,0.25313155,91685.0,91663.0,0.16341916]
[1732010794447,0.023,91675.0,91663.0,0.16341916]
[1732010794680,0.218179,91668.0,91663.0,0.16341916]
[1732010794909,0.023,91675.0,91658.0,0.218202]
[1732010794910,0.10906255,91667.0,91658.0,0.218202]
[1732010795148,0.10906255,91667.0,91658.0,0.16670282]
[1732010795432,0.10906255,91667.0,91657.0,0.04370834]
[1732010795650,0.10906255,91667.0,91664.0,0.005]
[1732010795865,0.10906255,91667.0,91664.0,0.006]
[1732010796089,0.10906255,91667.0,91662.0,0.109095]
[1732010796317,0.023,91664.0,91651.0,0.0004]
[1732010796566,0.023,91664.0,91661.0,0.109096]
[1732010796567,0.10906255,91663.0,91661.0,0.109096]
[1732010796792,0.10906255,91663.0,91658.0,0.006]
[1732010796793,0.10906255,91663.0,91658.0,0.005]
[1732010797267,0.10906255,91663.0,91662.0,0.109096]
[1732010797489,0.10906255,91663.0,91662.0,0.190196]
[1732010798172,0.10906255,91663.0,91662.0,0.0811]
[1732010798390,0.10906255,91663.0,91662.0,0.190196]
[1732010798613,0.10906255,91663.0,91662.0,0.193196]
[1732010799286,0.11206255,91663.0,91662.0,0.0811]
[1732010799510,0.11506255,91663.0,91662.0,0.0841]
[1732010799960,0.11506255,91663.0,91662.0,0.193196]
[1732010800185,0.006,91663.0,91662.0,0.193196]
[1732010801352,0.006,91663.0,91662.0,0.1940509]
[1732010802277,0.006,91663.0,91662.0,0.32192347]
[1732010802949,0.006,91663.0,91662.0,0.36562097]
[1732010803602,0.006,91663.0,91662.0,0.2377484]
[1732010805966,0.006,91663.0,91662.0,0.1940509]
[1732010810832,0.006,91663.0,91662.0,0.0038549]
[1732010811055,0.006,91663.0,91662.0,0.1129509]
[1732010811275,0.006,91663.0,91662.0,0.0038549]
[1732010812364,0.006,91663.0,91662.0,0.1129509]
[1732010813200,0.0077104,91663.0,91662.0,0.0038549]
[1732010814071,0.1168054,91663.0,91662.0,0.0038549]
[1732010814740,0.0077104,91663.0,91662.0,0.0038549]
[1732010817128,0.1168054,91663.0,91662.0,0.0038549]
[1732010821024,0.109099,91660.0,91653.0,0.2179221]
[1732010821254,0.109099,91660.0,91655.0,0.109103]
[1732010821480,0.0077104,91663.0,91657.0,0.109102]
[1732010821695,0.1138054,91663.0,91653.0,0.218214]
[1732010821921,0.109097,91661.0,91656.0,0.109103]
[1732010822145,0.0017104,91663.0,91654.0,0.218211]
[1732010822368,0.002,91660.0,91656.0,0.109103]
[1732010822596,0.109098,91661.0,91656.0,0.109103]
[1732010823014,0.109098,91661.0,91651.0,0.218617]
[1732010823015,0.109103,91656.0,91651.0,0.109508]
[1732010823222,0.35025955,91660.0,91651.0,0.109508]
[1732010823223,0.109103,91657.0,91651.0,0.109508]
[1732010823467,0.109105,91655.0,91651.0,0.109508]
[1732010823880,0.218204,91657.0,91651.0,0.0004]
[1732010824082,0.109104,91656.0,91651.0,0.0004]
[1732010824289,0.327306,91657.0,91656.0,0.001]
[1732010824699,0.109103,91656.0,91651.0,0.0004]
[1732010825323,0.109108,91652.0,91651.0,0.0004]
[1732010825996,0.109108,91652.0,91651.0,0.0014]
[1732010826659,0.109108,91652.0,91651.0,0.0004]
[1732010826874,0.111108,91652.0,91651.0,0.0014]
[1732010827772,0.005,91652.0,91651.0,0.110509]
[1732010827981,0.005,91652.0,91651.0,0.0014]
[1732010828405,0.32727055,91652.0,91651.0,0.0014]
[1732010829312,0.32527055,91652.0,91651.0,0.0004]
[1732010829727,0.32627055,91652.0,91651.0,0.0014]
[1732010830193,0.32627055,91652.0,91651.0,0.0004]
[1732010830194,0.32527055,91652.0,91651.0,0.0004]
[1732010830424,0.32827055,91652.0,91651.0,0.0004]
[1732010830630,0.32527055,91652.0,91651.0,0.0004]
[1732010830833,0.32727055,91652.0,91651.0,0.0004]
[1732010831057,0.32227055,91652.0,91651.0,0.0004]
[1732010831486,0.32827055,91652.0,91651.0,0.0004]
[1732010831694,0.32227055,91652.0,91651.0,0.0004]
[1732010831903,0.32627055,91652.0,91651.0,0.0004]
[1732010832935,0.24517055,91652.0,91651.0,0.0004]
[1732010833148,0.24917055,91652.0,91651.0,0.0004]
[1732010833626,0.24517055,91652.0,91651.0,0.0004]
[1732010833843,0.24817055,91652.0,91651.0,0.0004]
[1732010834753,0.24417055,91652.0,91651.0,0.0004]
[1732010835221,0.24117055,91652.0,91651.0,0.0004]
[1732010835423,0.24717055,91652.0,91651.0,0.0004]
[1732010835649,0.24517055,91652.0,91651.0,0.0004]
[1732010835898,0.38527055,91652.0,91651.0,0.0004]
[1732010836128,0.39127055,91652.0,91651.0,0.0004]
[1732010836354,0.64715958,91652.0,91651.0,0.0004]
[1732010836641,0.50027055,91652.0,91651.0,0.0004]
[1732010836887,0.50727055,91652.0,91651.0,0.0004]
[1732010837114,0.50727055,91652.0,91651.0,0.0012553]
[1732010837115,0.52927055,91652.0,91651.0,0.0012553]
[1732010837787,0.51327055,91652.0,91651.0,0.0012553]
[1732010838007,0.54027055,91652.0,91651.0,0.0012553]
[1732010838458,0.51827055,91652.0,91651.0,0.0012553]
[1732010838686,0.54427055,91652.0,91651.0,0.0012553]
[1732010841409,0.54427055,91652.0,91631.0,0.0004]
[1732010841410,0.43516255,91652.0,91631.0,0.0004]
[1732010841677,0.43516255,91652.0,91611.0,0.0004]
[1732010841678,0.38152973,91612.0,91611.0,0.0004]
[1732010841894,0.46442973,91612.0,91611.0,0.0004]
[1732010842769,0.48478878,91612.0,91611.0,0.0004]
[1732010843017,0.48478878,91612.0,91596.0,0.0138237]
[1732010843018,0.22314673,91597.0,91596.0,0.0138237]
[1732010843253,0.33420928,91597.0,91596.0,0.0088237]
[1732010843460,0.35456833,91597.0,91596.0,0.0088237]
[1732010843666,0.24123555,91597.0,91596.0,0.0088237]
[1732010844557,0.26823555,91597.0,91596.0,0.0088237]
[1732010844977,0.28423555,91597.0,91596.0,0.0088237]
[1732010848729,0.28423555,91597.0,91596.0,0.009679]
[1732010849627,0.26123555,91597.0,91596.0,0.009679]
[1732010850089,0.26123555,91597.0,91591.0,0.0004]
[1732010850090,0.254179,91592.0,91591.0,1e-06]
[1732010850296,0.109203,91572.0,91571.0,0.0004]
[1732010850506,0.21826555,91572.0,91571.0,0.0004]
[1732010852137,0.26461749,91572.0,91571.0,0.0004]
[1732010852615,0.28661749,91572.0,91571.0,0.0004]
[1732010853572,0.45003665,91572.0,91571.0,0.0004]
[1732010853805,0.28661749,91572.0,91571.0,0.0004]
[1732010854458,0.25261749,91572.0,91571.0,0.0004]
[1732010854664,0.26761749,91572.0,91571.0,0.0004]
[1732010855124,0.21826555,91572.0,91571.0,0.0004]
[1732010855346,0.26860937,91572.0,91571.0,0.0004]
[1732010855570,0.27060937,91572.0,91571.0,0.0004]
[1732010855790,0.29760937,91572.0,91571.0,0.0004]
[1732010856008,0.27060937,91572.0,91571.0,0.0004]
[1732010856456,0.29760937,91572.0,91571.0,0.0004]
[1732010856678,0.29560937,91572.0,91571.0,0.0004]
[1732010857561,0.29760937,91572.0,91571.0,0.0004]
[1732010857808,0.29560937,91572.0,91571.0,0.0004]
[1732010858024,0.26126555,91572.0,91571.0,0.0004]
[1732010858957,0.043,91572.0,91571.0,0.109204]
[1732010859868,0.027,91572.0,91571.0,0.109204]
[1732010860082,0.16341916,91581.0,91576.0,0.109198]
[1732010860314,0.109199,91576.0,91571.0,0.0008559]
[1732010860511,0.27248171,91581.0,91571.0,0.0008559]
[1732010860512,0.001,91572.0,91571.0,0.1100599]
[1732010860960,0.002,91572.0,91571.0,0.1100599]
[1732010861456,0.001,91572.0,91571.0,0.1100599]
[1732010861675,0.002,91572.0,91571.0,0.1100599]
[1732010862100,0.001,91572.0,91571.0,0.1100599]
[1732010862319,0.001,91572.0,91571.0,0.1210599]
[1732010862592,0.001,91572.0,91571.0,0.2300599]
[1732010862847,0.001,91572.0,91571.0,0.2360599]
[1732010862848,0.004,91572.0,91571.0,0.2360599]
[1732010863054,0.003,91572.0,91571.0,0.28027175]
[1732010863279,0.0017118,91591.0,91590.0,0.109182]
[1732010864893,0.0027118,91591.0,91590.0,0.111182]
[1732010865339,0.0087118,91591.0,91590.0,0.112182]
[1732010865591,0.0087118,91591.0,91590.0,0.15685966]
[1732010865804,0.0027118,91591.0,91590.0,0.16585966]
[1732010866045,0.0047118,91591.0,91590.0,0.18685966]
[1732010866277,0.0037118,91591.0,91590.0,0.18485966]
[1732010866500,0.0057118,91591.0,91590.0,0.18885966]
[1732010866726,0.0057118,91591.0,91590.0,0.18385966]
[1732010868019,0.0057118,91591.0,91590.0,0.139182]
[1732010872290,0.0057118,91591.0,91590.0,0.1400379]
[1732010872961,0.0057118,91591.0,91590.0,0.2500379]
[1732010873404,0.00550129,91591.0,91590.0,0.2500379]
[1732010873622,0.00550129,91591.0,91590.0,0.35910045]
[1732010874089,0.16341916,91615.0,91604.0,0.1336127]
[1732010874323,0.16341916,91615.0,91614.0,0.109153]
[1732010874823,0.218263,91633.0,91623.0,0.109141]
[1732010875059,0.27255516,91629.0,91623.0,0.109141]
[1732010875267,0.16341916,91629.0,91620.0,0.218292]
[1732010875479,0.001,91615.0,91614.0,0.009]
[1732010875694,0.001,91615.0,91614.0,0.118153]
[1732010875906,0.16341916,91627.0,91605.0,0.1287]
[1732010876137,0.16341916,91627.0,91625.0,0.10914]
[1732010876369,0.16341916,91627.0,91622.0,0.218285]
[1732010876625,0.16341916,91627.0,91624.0,0.109141]
[1732010876831,0.0754,91634.0,91625.0,0.109139]
[1732010877090,0.16341916,91632.0,91614.0,0.019]
[1732010877305,0.109136,91629.0,91623.0,0.109142]
[1732010877530,0.109136,91629.0,91621.0,0.109144]
[1732010877531,0.21819855,91629.0,91621.0,0.109144]
[1732010877761,0.18453,91634.0,91627.0,0.109137]
[1732010877992,0.27248171,91633.0,91615.0,0.218304]
[1732010878201,0.27248171,91633.0,91626.0,0.109138]
[1732010878440,0.004,91627.0,91626.0,0.109138]
[1732010878655,0.004,91627.0,91622.0,0.109143]
[1732010878877,0.009,91627.0,91624.0,0.001]
[1732010879094,0.02686581,91627.0,91624.0,0.001]
[1732010879307,0.02186581,91627.0,91621.0,0.21829]
[1732010879520,0.02186581,91627.0,91626.0,0.109139]
[1732010879747,0.02686581,91627.0,91626.0,0.001]
[1732010879971,0.03086581,91627.0,91626.0,0.001]
[1732010880193,0.02586581,91627.0,91612.0,0.218312]
[1732010880403,0.014,91627.0,91626.0,0.109139]
[1732010880847,0.03552708,91627.0,91626.0,0.109139]
[1732010881287,0.03152708,91627.0,91624.0,0.109141]
[1732010881507,0.03152708,91627.0,91621.0,0.001]
[1732010881508,0.03752708,91627.0,91621.0,0.002]
[1732010881780,0.03152708,91627.0,91621.0,0.001]
[1732010881998,0.03752708,91627.0,91626.0,0.001]
[1732010882223,0.03752708,91627.0,91621.0,0.001]
[1732010882437,0.02752708,91627.0,91615.0,0.109152]
[1732010882652,0.017,91627.0,91626.0,0.001]
[1732010882885,0.114138,91627.0,91626.0,0.001]
[1732010883138,0.115138,91627.0,91626.0,0.001]
[1732010883369,0.006,91627.0,91626.0,0.001]
[1732010883582,0.011,91627.0,91626.0,0.001]
[1732010884002,0.1168498,91627.0,91626.0,0.001]
[1732010884218,0.1168498,91627.0,91626.0,0.002]
[1732010884437,0.1158498,91627.0,91626.0,0.001]
[1732010884651,0.1218498,91627.0,91626.0,0.001]
[1732010884876,0.1158498,91627.0,91626.0,0.001]
[1732010885328,0.1218498,91627.0,91626.0,0.002]
[1732010887378,0.218278,91626.0,91609.0,0.38173716]
[1732010887599,0.218278,91626.0,91604.0,0.01]
[1732010887600,0.109154,91614.0,91606.0,0.109162]
[1732010887843,0.218282,91625.0,91602.0,0.109167]
[1732010887844,0.109157,91612.0,91602.0,0.109167]
[1732010888148,0.109157,91612.0,91599.0,0.01]
[1732010888149,0.1236127,91619.0,91599.0,0.01]
[1732010888335,0.109161,91608.0,91599.0,0.119171]
[1732010888546,0.16341916,91616.0,91599.0,0.04428902]
[1732010888547,0.109152,91615.0,91599.0,0.04428902]
[1732010888755,0.109161,91608.0,91606.0,0.01]
[1732010888991,0.109161,91608.0,91596.0,0.527097]
[1732010888992,0.16341916,91616.0,91596.0,0.0904]
[1732010889230,0.10916,91609.0,91602.0,0.109167]
[1732010889467,0.218307,91614.0,91599.0,0.028]
[1732010889683,0.003,91608.0,91603.0,0.109166]
[1732010889920,0.112161,91608.0,91603.0,0.109166]
[1732010890140,0.109161,91608.0,91599.0,0.24634]
[1732010890351,0.109161,91608.0,91602.0,0.021]
[1732010890534,0.003,91609.0,91602.0,0.021]
[1732010890787,0.003,91609.0,91606.0,0.021]
[1732010891005,0.001,91608.0,91607.0,0.109161]
[1732010891224,0.003,91609.0,91604.0,0.21833]
[1732010891225,0.003,91609.0,91608.0,0.10916]
[1732010891699,0.10915,91617.0,91609.0,0.109158]
[1732010891700,0.109152,91615.0,91609.0,0.109158]
[1732010891977,0.109151,91616.0,91603.0,0.019]
[1732010892158,0.02199362,91618.0,91603.0,0.019]
[1732010892416,0.109153,91615.0,91604.0,0.218329]
[1732010892634,0.02199362,91618.0,91608.0,0.033]
[1732010892635,0.002,91609.0,91608.0,0.033]
[1732010893026,0.218304,91615.0,91608.0,0.033]
[1732010893027,0.109155,91613.0,91608.0,0.12816]
[1732010893523,0.109159,91609.0,91608.0,0.019]
[1732010893762,0.218311,91613.0,91603.0,0.128165]
[1732010893983,0.218304,91615.0,91603.0,0.019]
[1732010894196,0.001,91616.0,91603.0,0.047]
[1732010894424,0.10915,91617.0,91612.0,0.109154]
[1732010894651,0.10915,91617.0,91597.0,0.01]
[1732010894652,0.109153,91615.0,91609.0,0.109158]
[1732010894861,0.02199362,91618.0,91608.0,0.01]
[1732010895093,0.001,91613.0,91608.0,0.01]
[1732010895313,0.001,91613.0,91611.0,0.109157]
[1732010895531,0.001,91613.0,91603.0,0.028]
[1732010895532,0.110152,91615.0,91610.0,0.109157]
[1732010895739,0.02199362,91618.0,91610.0,0.109157]
[1732010895740,0.001,91617.0,91612.0,0.006]
[1732010895990,0.001,91617.0,91616.0,0.109151]
[1732010896220,0.02199362,91618.0,91617.0,0.10915]
[1732010897986,0.02199362,91618.0,91617.0,0.003]
[1732010898418,0.02199362,91618.0,91617.0,0.11215]
[1732010898882,0.02299362,91618.0,91617.0,0.11415]
[1732010899097,0.02299362,91618.0,91617.0,0.006]
[1732010899098,0.13914162,91618.0,91617.0,0.006]
[1732010899307,0.13214162,91618.0,91617.0,0.005]
[1732010899556,0.13114162,91618.0,91612.0,0.109155]
[1732010899771,0.02199362,91618.0,91610.0,0.218314]
[1732010899986,0.02199362,91618.0,91611.0,0.218314]
[1732010900213,0.02199362,91618.0,91617.0,0.10915]
[1732010900616,0.02199362,91618.0,91617.0,0.003]
[1732010900893,0.02199362,91618.0,91617.0,0.11015]
[1732010901106,0.02899362,91618.0,91617.0,0.11015]
[1732010901313,0.02199362,91618.0,91617.0,0.10915]
[1732010901754,0.03399362,91618.0,91617.0,0.11115]
[1732010902442,0.012,91618.0,91617.0,0.11115]
[1732010905029,0.012,91618.0,91617.0,0.12115]
[1732010905471,0.0017118,91627.0,91626.0,0.109139]
[1732010907761,0.0077118,91627.0,91626.0,0.109139]
[1732010908208,0.0087118,91627.0,91626.0,0.109139]
[1732010910014,0.0017118,91627.0,91626.0,0.109139]
[1732010910250,0.0027118,91627.0,91626.0,0.117139]
[1732010912648,0.0027118,91627.0,91621.0,0.21829]
[1732010912859,0.0027118,91627.0,91626.0,0.109139]
[1732010913835,0.0017118,91627.0,91626.0,0.109139]
[1732010914049,0.0027118,91627.0,91626.0,0.109139]
[1732010914470,0.0017118,91627.0,91626.0,0.112139]
[1732010914685,0.0027118,91627.0,91626.0,0.117139]
[1732010941182,0.10912,91642.0,91636.0,0.109126]
[1732010941388,0.10053356,91643.0,91640.0,0.109122]
[1732010941614,0.10053356,91643.0,91631.0,0.218265]
[1732010941845,0.0761,91644.0,91626.0,0.226277]
[1732010942062,0.109121,91642.0,91633.0,0.10913]
[1732010942289,0.109121,91642.0,91634.0,0.109129]
[1732010942506,0.119121,91642.0,91636.0,0.002]
[1732010942725,0.109121,91642.0,91634.0,0.109129]
[1732010942953,0.109121,91642.0,91634.0,0.107978]
[1732010943191,0.10912,91642.0,91634.0,0.109128]
[1732010943410,0.10912,91642.0,91636.0,0.001]
[1732010943411,0.12212,91642.0,91636.0,0.001]
[1732010943633,0.12212,91642.0,91636.0,0.110126]
[1732010943634,0.023,91642.0,91636.0,0.110126]
[1732010943838,0.01,91642.0,91636.0,0.109127]
[1732010944260,0.023,91642.0,91634.0,0.003]
[1732010944746,0.01,91642.0,91634.0,0.002]
[1732010944967,0.023,91642.0,91636.0,0.001]
[1732010945187,0.023,91642.0,91638.0,0.109124]
[1732010945188,0.013,91642.0,91638.0,0.109124]
[1732010945420,0.023,91642.0,91636.0,0.112126]
[1732010945633,0.218242,91641.0,91636.0,0.001]
[1732010945852,0.109126,91637.0,91636.0,0.001]
[1732010946078,0.109124,91639.0,91636.0,0.001]
[1732010946523,0.109125,91638.0,91636.0,0.001]
[1732010946741,0.109125,91638.0,91636.0,0.003]
[1732010946958,0.109125,91638.0,91621.0,0.1078345]
[1732010946959,0.218245,91640.0,91622.0,0.02]
[1732010947182,0.327368,91640.0,91635.0,0.109128]
[1732010947418,0.218239,91643.0,91635.0,0.109128]
[1732010947419,0.109124,91639.0,91635.0,0.109128]
[1732010948084,0.009,91638.0,91636.0,0.001]
[1732010948320,0.109126,91637.0,91636.0,0.002]
[1732010948537,0.0761,91644.0,91630.0,0.218267]
[1732010948759,0.109126,91637.0,91630.0,0.218267]
[1732010948972,0.01,91639.0,91635.0,0.001]
[1732010949184,0.38165716,91643.0,91630.0,0.218267]
[1732010949399,0.119124,91639.0,91636.0,0.001]
[1732010949637,0.01,91637.0,91636.0,0.001]
[1732010949857,0.01,91637.0,91635.0,0.001]
[1732010950077,0.02,91637.0,91635.0,0.001]
[1732010950302,0.02,91637.0,91635.0,0.110128]
[1732010950514,0.02,91637.0,91635.0,0.109128]
[1732010950748,0.02,91637.0,91631.0,0.218266]
[1732010950964,0.129126,91637.0,91633.0,0.10913]
[1732010951644,0.028,91637.0,91635.0,0.001]
[1732010951868,0.008,91637.0,91635.0,0.001]
[1732010952087,0.109125,91638.0,91636.0,0.001]
[1732010952314,0.218242,91641.0,91633.0,0.109129]
[1732010952540,0.109127,91636.0,91633.0,0.001]
[1732010952762,0.127126,91637.0,91633.0,0.11113]
[1732010952981,0.127126,91637.0,91633.0,0.11013]
[1732010953200,0.018,91637.0,91636.0,0.001]
[1732010953845,0.01,91637.0,91636.0,0.001]
[1732010954073,0.127126,91637.0,91636.0,0.001]
[1732010954502,0.109126,91637.0,91629.0,0.3161045]
[1732010954756,0.109128,91635.0,91633.0,0.001]
[1732010955004,0.109138,91627.0,91626.0,0.0008544]
[1732010955259,0.38184449,91627.0,91626.0,0.0008544]
[1732010956345,0.38184449,91627.0,91626.0,0.0028544]
[1732010957223,0.38284449,91627.0,91626.0,0.0058544]
[1732010958098,0.38284449,91627.0,91626.0,0.0028544]
[1732010958099,0.38184449,91627.0,91626.0,0.0028544]
[1732010958307,0.38184449,91627.0,91626.0,0.0018544]
[1732010958591,0.38484449,91627.0,91626.0,0.0018544]
[1732010958841,0.0856,91627.0,91626.0,0.0018544]
[1732010959068,0.01,91627.0,91626.0,0.1109934]
[1732010959946,0.01,91627.0,91626.0,0.15586918]
[1732010960181,0.007,91627.0,91626.0,0.15486918]
[1732010960414,0.008,91627.0,91626.0,0.40246918]
[1732010960633,0.001,91627.0,91626.0,0.60955228]
[1732010960859,0.16341916,91643.0,91642.0,0.10912]
[1732010961090,0.16341916,91643.0,91642.0,0.12912]
[1732010961315,0.16512976,91653.0,91640.0,0.12343277]
[1732010961316,0.16512976,91653.0,91652.0,0.109108]
[1732010961762,0.0017106,91653.0,91652.0,0.109108]
[1732010962448,0.0017106,91653.0,91652.0,0.119108]
[1732010962676,0.0017106,91653.0,91652.0,0.121108]
[1732010962890,0.0017106,91653.0,91652.0,0.16518559]